bitfinex-derivatives/quotes_SOLF0:USTF0_20250911
["timestamp","ask_amount","ask_price","bid_price","bid_amount"]
[1757556283662,3.21019614,224.63,224.55,1.63028826]
[1757556283864,4.89939163,224.75,224.61,1.63028826]
[1757556284065,1.63028826,224.72,224.63,1.63028826]
[1757556284365,3.21089577,224.71,224.65,1.63028826]
[1757556284764,1.63028826,224.76,224.67,1.63028826]
[1757556284958,3.21203464,224.75,224.67,1.63028826]
[1757556285162,3.21203464,224.74,224.67,1.63028826]
[1757556285363,1.63028826,224.77,224.67,1.63028826]
[1757556285364,3.21203464,224.73,224.67,1.63028826]
[1757556285664,3.21207561,224.72,224.67,1.63028826]
[1757556285859,1.63028826,224.75,224.67,1.63028826]
[1757556286164,3.21207561,224.74,224.67,1.63028826]
[1757556286360,3.21207561,224.73,224.67,1.63028826]
[1757556286560,3.21207561,224.72,224.67,1.63028826]
[1757556286756,1.63028826,224.76,224.67,1.63028826]
[1757556286961,3.21276253,224.75,224.67,1.63028826]
[1757556287167,3.21276253,224.74,224.67,1.63028826]
[1757556287463,3.21276253,224.73,224.67,1.63028826]
[1757556287667,3.21276253,224.72,224.67,1.63028826]
[1757556287859,1.63028826,224.76,224.67,1.63028826]
[1757556288062,3.21336599,224.75,224.67,1.63028826]
[1757556288262,3.21336599,224.74,224.67,1.63028826]
[1757556288467,3.21336599,224.73,224.67,1.63028826]
[1757556288768,3.21336599,224.72,224.69,1.63028826]
[1757556289070,300.65028826,224.78,224.69,1.63028826]
[1757556289271,3.21435742,224.77,224.71,1.63028826]
[1757556289467,3.21435742,224.76,224.71,1.63028826]
[1757556289667,3.21435742,224.75,224.71,1.63028826]
[1757556289866,3.21435742,224.74,224.71,1.63028826]
[1757556290064,299.02,224.78,224.71,1.63028826]
[1757556290268,3.21411333,224.77,224.71,1.63028826]
[1757556290467,3.21411333,224.76,224.71,1.63028826]
[1757556290667,299.02,224.78,224.71,1.63028826]
[1757556290867,3.21415565,224.77,224.71,1.63028826]
[1757556291067,3.21415565,224.76,224.71,1.63028826]
[1757556291270,299.02,224.78,224.71,1.63028826]
[1757556291570,3.214097,224.77,224.71,1.63028826]
[1757556291770,4.89939163,224.85,224.73,1.63028826]
[1757556291967,11.94217685,224.84,224.75,1.63028826]
[1757556292161,1.63028826,224.8,224.71,1.63028826]
[1757556292364,1.63028826,224.78,224.69,1.63028826]
[1757556292564,3.21451774,224.77,224.69,1.63028826]
[1757556292767,4.8439244,224.76,224.67,1.63028826]
[1757556292969,3.21363614,224.75,224.67,1.63028826]
[1757556293272,3.21363614,224.74,224.61,1.62]
[1757556293472,1.63028826,224.76,224.66,1.63028826]
[1757556293672,3.21347988,224.75,224.66,1.63028826]
[1757556293872,3.21347988,224.74,224.66,1.63028826]
[1757556294072,1.63028826,224.76,224.66,1.63028826]
[1757556294269,3.21346494,224.75,224.66,1.63028826]
[1757556294474,3.21346494,224.74,224.66,1.63028826]
[1757556294672,1.63028826,224.76,224.66,1.63028826]
[1757556294875,3.21374438,224.75,224.66,1.63028826]
[1757556295078,3.21374438,224.74,224.66,1.63028826]
[1757556295270,1.63028826,224.76,224.66,1.63028826]
[1757556295473,3.21402828,224.75,224.66,1.63028826]
[1757556295673,3.21402828,224.74,224.66,1.63028826]
[1757556295967,3.21402828,224.73,224.66,1.63028826]
[1757556296172,3.21402828,224.72,224.66,1.63028826]
[1757556296373,1.63028826,224.76,224.66,1.63028826]
[1757556296576,3.21488069,224.75,224.66,1.63028826]
[1757556296775,3.21488069,224.74,224.66,1.63028826]
[1757556296975,3.21488069,224.73,224.66,1.63028826]
[1757556297175,1.63028826,224.76,224.66,1.63028826]
[1757556297477,3.21496978,224.75,224.66,1.63028826]
[1757556297666,3.21496978,224.74,224.66,1.63028826]
[1757556297872,3.21496978,224.73,224.66,1.63028826]
[1757556298071,1.63028826,224.76,224.66,1.63028826]
[1757556298268,3.21520978,224.75,224.66,1.63028826]
[1757556298476,3.21520978,224.74,224.68,1.63028826]
[1757556298674,3.21520978,224.73,224.68,1.63028826]
[1757556298874,1.63028826,224.76,224.68,1.63028826]
[1757556299175,3.21509234,224.75,224.68,1.63028826]
[1757556299376,3.21509234,224.74,224.68,1.63028826]
[1757556299574,3.21509234,224.73,224.68,1.63028826]
[1757556299775,1.63028826,224.76,224.68,1.63028826]
[1757556299976,3.21478521,224.75,224.68,1.63028826]
[1757556300172,3.21478521,224.74,224.68,1.63028826]
[1757556300373,3.21478521,224.73,224.68,1.63028826]
[1757556300568,1.63028826,224.76,224.68,1.63028826]
[1757556300768,3.21459883,224.75,224.68,1.63028826]
[1757556300969,3.21459883,224.74,224.7,1.63028826]
[1757556301178,3.21459883,224.73,224.7,1.63028826]
[1757556301378,1.63028826,224.78,224.7,1.63028826]
[1757556301580,3.21481829,224.77,224.7,1.63028826]
[1757556301778,3.21481829,224.76,224.7,1.63028826]
[1757556302077,3.21481829,224.75,224.7,1.63028826]
[1757556302277,1.63028826,224.78,224.7,1.63028826]
[1757556302580,4.89939163,224.86,224.77,1.63028826]
[1757556302873,6.69558975,224.85,224.77,1.63028826]
[1757556303073,3.21586685,224.84,224.68,1.64]
[1757556303275,3.21586685,224.83,224.76,1.63028826]
[1757556303474,3.21586685,224.82,224.76,1.63028826]
[1757556303673,1.63028826,224.86,224.76,1.63028826]
[1757556303674,3.21586685,224.81,224.76,1.63028826]
[1757556303874,1.63028826,224.86,224.76,1.63028826]
[1757556304074,6.69273074,224.85,224.76,1.63028826]
[1757556304275,3.21451795,224.84,224.73,2.54653352]
[1757556304473,3.21451795,224.83,224.73,2.54653352]
[1757556304777,3.21451795,224.82,224.73,2.54653352]
[1757556304977,3.21451795,224.81,224.73,2.54653352]
[1757556305176,3.21451795,224.8,224.73,2.54653352]
[1757556305376,7.44592515,224.88,224.73,2.54653352]
[1757556305577,2.54653352,224.85,224.7,2.54653352]
[1757556305872,10.31257694,224.84,224.7,2.54653352]
[1757556306070,10.31257694,224.83,224.7,2.54653352]
[1757556306267,6.68916882,224.82,224.7,2.54653352]
[1757556306476,3.21280094,224.81,224.7,2.54653352]
[1757556306678,3.21280094,224.8,224.7,2.54653352]
[1757556306878,3.21280094,224.79,224.7,2.54653352]
[1757556307073,3.21280094,224.78,224.7,2.54653352]
[1757556307276,3.21280094,224.77,224.7,2.54653352]
[1757556307471,10.82,224.82,224.7,2.54653352]
[1757556307678,3.21203348,224.81,224.7,2.54653352]
[1757556307877,3.21203348,224.8,224.7,2.54653352]
[1757556308078,3.21203348,224.79,224.67,2.54653352]
[1757556308280,3.21203348,224.78,224.67,2.54653352]
[1757556308575,3.21203348,224.77,224.67,2.54653352]
[1757556308784,10.82,224.82,224.67,2.54653352]
[1757556309080,6.69707638,224.81,224.67,2.54653352]
[1757556309274,3.21161236,224.8,224.67,2.54653352]
[1757556309480,3.21161236,224.79,224.67,2.54653352]
[1757556309678,3.21161236,224.78,224.67,2.54653352]
[1757556309880,10.82,224.82,224.67,2.54653352]
[1757556310180,3.20924367,224.81,224.67,2.54653352]
[1757556310375,3.20924367,224.8,224.67,2.54653352]
[1757556310574,3.20924367,224.79,224.67,2.54653352]
[1757556310782,3.20924367,224.78,224.7,2.54653352]
[1757556310986,4.89939163,224.87,224.73,2.54653352]
[1757556311181,10.31693219,224.86,224.73,2.54653352]
[1757556311376,6.69485731,224.85,224.73,2.54653352]
[1757556311577,3.20941199,224.84,224.73,2.54653352]
[1757556311773,3.20941199,224.83,224.73,2.54653352]
[1757556311978,3.20941199,224.82,224.73,2.54653352]
[1757556312178,3.20941199,224.81,224.73,2.54653352]
[1757556312477,10.28,224.88,224.73,2.54653352]
[1757556312782,10.31360476,224.87,224.73,2.54653352]
[1757556312983,10.31360476,224.86,224.73,2.54653352]
[1757556313184,6.69269745,224.85,224.73,2.54653352]
[1757556313386,3.20837995,224.84,224.73,2.54653352]
[1757556313576,3.20837995,224.83,224.73,2.54653352]
[1757556313780,3.20837995,224.82,224.73,2.54653352]
[1757556314082,3.20837995,224.81,224.73,2.54653352]
[1757556314284,10.28,224.88,224.73,2.54653352]
[1757556314583,10.31096409,224.87,224.73,2.54653352]
[1757556314785,10.31096409,224.86,224.73,2.54653352]
[1757556314985,3.20755584,224.85,224.73,2.54653352]
[1757556315176,3.20755584,224.84,224.73,2.54653352]
[1757556315383,3.20755584,224.83,224.68,2.66]
[1757556315583,3.20755584,224.82,224.71,2.54653352]
[1757556315884,2.54653352,224.86,224.71,2.54653352]
[1757556316079,3.20695005,224.85,224.71,2.54653352]
[1757556316284,3.20695005,224.84,224.71,2.54653352]
[1757556316481,3.20695005,224.83,224.68,2.54653352]
[1757556316676,3.20695005,224.82,224.68,2.54653352]
[1757556316879,2.54653352,224.83,224.68,2.54653352]
[1757556316880,3.20695005,224.81,224.68,2.54653352]
[1757556317079,3.20695005,224.8,224.68,2.54653352]
[1757556317286,2.54653352,224.83,224.68,2.54653352]
[1757556317583,38.14653352,224.9,224.68,2.54653352]
[1757556317584,3.2070258,224.82,224.68,2.54653352]
[1757556317783,3.2070258,224.81,224.68,2.54653352]
[1757556317978,3.2070258,224.8,224.68,2.54653352]
[1757556318182,3.2070258,224.79,224.68,2.54653352]
[1757556318482,2.54653352,224.83,224.68,2.54653352]
[1757556318680,3.20758638,224.82,224.68,2.54653352]
[1757556318881,3.20758638,224.81,224.68,2.54653352]
[1757556319084,3.20758638,224.8,224.68,2.54653352]
[1757556319285,3.20758638,224.79,224.68,2.54653352]
[1757556319590,2.54653352,224.83,224.68,2.54653352]
[1757556319886,3.2082333,224.82,224.68,2.54653352]
[1757556320084,3.2082333,224.81,224.68,2.54653352]
[1757556320285,3.2082333,224.8,224.68,2.54653352]
[1757556320581,3.2082333,224.79,224.68,2.54653352]
[1757556320783,2.54653352,224.83,224.68,2.54653352]
[1757556320984,3.20871553,224.82,224.68,2.54653352]
[1757556321183,3.20871553,224.81,224.68,2.54653352]
[1757556321384,3.20871553,224.8,224.68,2.54653352]
[1757556321576,3.20871553,224.79,224.68,2.54653352]
[1757556321777,2.54653352,224.83,224.68,2.54653352]
[1757556321984,3.20946934,224.82,224.68,2.54653352]
[1757556322289,3.20946934,224.81,224.68,2.54653352]
[1757556322487,3.20946934,224.8,224.68,2.54653352]
[1757556322678,3.20946934,224.79,224.68,2.54653352]
[1757556322883,3.20946934,224.78,224.68,2.54653352]
[1757556323187,2.54653352,224.83,224.68,2.54653352]
[1757556323389,6.69967808,224.82,224.68,2.54653352]
[1757556323586,3.21118801,224.81,224.68,2.54653352]
[1757556323887,3.21118801,224.8,224.68,2.54653352]
[1757556324088,3.21118801,224.79,224.67,2.54653352]
[1757556324287,3.21118801,224.78,224.67,2.54653352]
[1757556324488,3.21118801,224.77,224.67,2.54653352]
[1757556324688,3.21118801,224.76,224.67,2.54653352]
[1757556324890,2.54653352,224.83,224.67,2.54653352]
[1757556325188,10.33390345,224.82,224.67,2.54653352]
[1757556325390,10.33390345,224.81,224.67,2.54653352]
[1757556325586,3.21518555,224.8,224.67,2.54653352]
[1757556325888,7.44592515,224.83,224.63,9.44]
[1757556325889,3.21518555,224.79,224.63,9.44]
[1757556326090,3.21518555,224.78,224.56,299.0]
[1757556326286,3.21518555,224.77,224.63,2.54653352]
[1757556326488,3.21518555,224.76,224.63,2.54653352]
[1757556326788,3.21518555,224.75,224.63,2.54653352]
[1757556326987,3.21518555,224.74,224.63,2.54653352]
[1757556327290,3.22318711,224.73,224.63,2.54653352]
[1757556327489,2.54653352,224.8,224.63,2.54653352]
[1757556327689,10.35998839,224.79,224.63,2.54653352]
[1757556327889,10.35998839,224.78,224.63,2.54653352]
[1757556328190,10.35998839,224.77,224.63,2.54653352]
[1757556328391,6.72302671,224.76,224.63,2.54653352]
[1757556328683,6.72584849,224.75,224.63,2.54653352]
[1757556328888,3.22318976,224.74,224.63,2.54653352]
[1757556329087,3.22318976,224.73,224.61,15.44]
[1757556329287,3.22318976,224.72,224.63,2.54653352]
[1757556329488,3.22318976,224.71,224.63,2.54653352]
[1757556329683,3.22318976,224.7,224.63,2.54653352]
[1757556329882,3.22318976,224.69,224.63,2.54653352]
[1757556330087,4.89939163,224.77,224.63,2.54653352]
[1757556330288,10.37005447,224.76,224.63,2.54653352]
[1757556330481,10.37005447,224.75,224.6,29.06]
[1757556330687,6.72963041,224.74,224.62,2.54653352]
[1757556330883,6.72975222,224.73,224.62,2.54653352]
[1757556331090,3.22638604,224.72,224.62,2.54653352]
[1757556331388,3.22638604,224.71,224.62,2.54653352]
[1757556331689,3.22638604,224.7,224.62,2.54653352]
[1757556331891,3.22638604,224.69,224.62,2.54653352]
[1757556332089,4.89939163,224.77,224.62,2.54653352]
[1757556332388,10.37229389,224.76,224.62,2.54653352]
[1757556332586,10.37229389,224.75,224.62,2.54653352]
[1757556332788,10.372609,224.74,224.62,2.54653352]
[1757556332989,6.73105567,224.73,224.62,2.54653352]
[1757556333188,3.22702768,224.72,224.56,299.0]
[1757556333385,3.22702768,224.71,224.62,2.54653352]
[1757556333588,3.22702768,224.7,224.62,2.54653352]
[1757556333790,3.22702768,224.69,224.62,2.54653352]
[1757556333992,4.89939163,224.77,224.62,2.54653352]
[1757556334193,10.37419995,224.76,224.62,2.54653352]
[1757556334391,10.37419995,224.75,224.62,2.54653352]
[1757556334587,6.73235411,224.74,224.62,2.54653352]
[1757556334793,3.22775864,224.73,224.62,2.54653352]
[1757556335090,3.22775864,224.72,224.62,2.54653352]
[1757556335392,3.22775864,224.71,224.62,2.54653352]
[1757556335594,3.22775864,224.7,224.62,2.54653352]
[1757556335791,3.22775864,224.69,224.62,2.54653352]
[1757556335993,4.89939163,224.77,224.62,2.54653352]
[1757556336189,10.37438458,224.76,224.62,2.54653352]
[1757556336494,10.37438458,224.75,224.62,2.54653352]
[1757556336788,4.89939163,224.77,224.62,2.54653352]
[1757556336789,6.73112518,224.74,224.62,2.54653352]
[1757556336996,3.22711475,224.73,224.62,2.54653352]
[1757556337196,3.22711475,224.72,224.62,2.54653352]
[1757556337493,3.22711475,224.71,224.62,2.54653352]
[1757556337693,3.22711475,224.7,224.62,2.54653352]
[1757556337994,3.22711475,224.69,224.62,2.54653352]
[1757556338194,4.89939163,224.77,224.62,2.54653352]
[1757556338394,10.35272048,224.76,224.62,2.54653352]
[1757556338596,10.35272048,224.75,224.62,2.54653352]
[1757556338792,12.89894246,224.74,224.56,299.0]
[1757556338996,10.35240894,224.73,224.58,2.54653352]
[1757556339200,10.35240894,224.72,224.58,2.54653352]
[1757556339392,3.2268801,224.71,224.58,2.54653352]
[1757556339596,3.2268801,224.7,224.58,2.54653352]
[1757556339796,3.2268801,224.69,224.58,2.54653352]
[1757556339997,7.44592515,224.74,224.58,2.54653352]
[1757556339998,3.2268801,224.68,224.58,2.54653352]
[1757556340298,7.44592515,224.74,224.58,2.54653352]
[1757556340299,3.2268801,224.67,224.58,2.54653352]
[1757556340496,3.2268801,224.66,224.58,2.54653352]
[1757556340692,3.2268801,224.65,224.58,2.54653352]
[1757556340896,7.44592515,224.74,224.58,2.54653352]
[1757556341099,10.34596209,224.73,224.58,2.54653352]
[1757556341298,10.34596209,224.72,224.58,2.54653352]
[1757556341599,6.70514414,224.71,224.58,2.54653352]
[1757556341900,3.22418452,224.7,224.58,2.54653352]
[1757556342098,3.22418452,224.69,224.58,2.54653352]
[1757556342295,3.22418452,224.68,224.58,2.54653352]
[1757556342599,3.22418452,224.67,224.58,2.54653352]
[1757556342899,3.22418452,224.66,224.58,2.54653352]
[1757556343097,7.44592515,224.74,224.58,2.54653352]
[1757556343298,10.34273244,224.73,224.58,2.54653352]
[1757556343498,2.54653352,224.74,224.58,2.54653352]
[1757556343499,10.34273244,224.72,224.58,2.54653352]
[1757556343796,6.70308207,224.71,224.58,2.54653352]
[1757556343996,3.22324735,224.7,224.58,2.54653352]
[1757556344195,3.22324735,224.69,224.58,2.54653352]
[1757556344391,3.22324735,224.68,224.58,2.54653352]
[1757556344592,7.44592515,224.74,224.58,2.54653352]
[1757556344593,3.22324735,224.67,224.58,2.54653352]
[1757556344795,4.89939163,224.77,224.61,2.54653352]
[1757556344996,10.34042206,224.76,224.64,2.54653352]
[1757556345297,10.34042206,224.75,224.64,2.54653352]
[1757556345502,3.22247964,224.74,224.67,2.54653352]
[1757556345691,3.22247964,224.73,224.67,2.54653352]
[1757556345894,4.89939163,224.81,224.67,2.54653352]
[1757556346095,10.34158221,224.8,224.67,2.54653352]
[1757556346397,10.34158221,224.79,224.67,2.54653352]
[1757556346596,10.34158221,224.78,224.67,2.54653352]
[1757556346799,3.22283887,224.77,224.67,2.54653352]
[1757556346999,3.22283887,224.76,224.67,2.54653352]
[1757556347199,3.22283887,224.75,224.67,2.54653352]
[1757556347394,3.22283887,224.74,224.67,2.54653352]
[1757556347591,4.89939163,224.82,224.67,2.54653352]
[1757556347794,10.34087559,224.81,224.67,2.54653352]
[1757556347999,10.34087559,224.8,224.67,2.54653352]
[1757556348204,10.34087476,224.79,224.67,2.54653352]
[1757556348502,3.22261886,224.78,224.67,2.54653352]
[1757556348697,3.22261886,224.77,224.67,2.54653352]
[1757556348901,3.22261886,224.76,224.67,2.54653352]
[1757556349105,3.22261886,224.75,224.67,2.54653352]
[1757556349298,3.22261886,224.74,224.7,2.54653352]
[1757556349498,4.89939163,224.83,224.7,2.54653352]
[1757556349693,3.22306048,224.82,224.7,2.54653352]
[1757556349997,6.8626782,224.81,224.7,2.54653352]
[1757556350198,3.22306048,224.8,224.7,2.54653352]
[1757556350496,3.22306048,224.79,224.7,2.54653352]
[1757556350803,14.47939163,224.84,224.7,2.54653352]
[1757556350804,3.22306048,224.78,224.7,2.54653352]
[1757556351004,3.22306048,224.77,224.7,2.54653352]
[1757556351200,3.22306048,224.76,224.7,2.54653352]
[1757556351504,14.47939163,224.84,224.7,2.54653352]
[1757556351703,3.22307282,224.83,224.7,2.54653352]
[1757556352005,10.34216396,224.82,224.7,2.54653352]
[1757556352304,10.34216396,224.81,224.7,2.54653352]
[1757556352507,6.70260585,224.8,224.7,2.54653352]
[1757556352805,3.22307282,224.79,224.64,2.54653352]
[1757556352995,3.22307282,224.78,224.71,2.54653352]
[1757556353196,3.22307282,224.77,224.71,2.54653352]
[1757556353399,4.89939163,224.84,224.71,2.54653352]
[1757556353400,3.22307282,224.76,224.71,2.54653352]
[1757556353600,4.89939163,224.84,224.71,2.54653352]
[1757556353801,10.34119659,224.83,224.71,2.54653352]
[1757556354000,10.34119659,224.82,224.71,2.54653352]
[1757556354200,10.34119659,224.81,224.71,2.54653352]
[1757556354401,3.22280386,224.8,224.71,2.54653352]
[1757556354706,3.22280386,224.79,224.71,2.54653352]
[1757556355001,3.22280386,224.78,224.74,2.54653352]
[1757556355206,109.58239082,224.85,224.74,2.54653352]
[1757556355506,10.33857883,224.84,224.74,2.54653352]
[1757556355703,6.70042239,224.83,224.74,2.54653352]
[1757556355897,3.22193504,224.82,224.74,2.54653352]
[1757556356096,3.22193504,224.81,224.74,2.54653352]
[1757556356409,3.22193504,224.8,224.74,2.54653352]
[1757556356711,3.22193504,224.79,224.74,2.54653352]
[1757556356908,3.22193504,224.78,224.74,2.54653352]
[1757556357211,109.58239082,224.85,224.74,2.54653352]
[1757556357396,10.33681637,224.84,224.74,2.54653352]
[1757556357601,6.69893796,224.83,224.74,2.54653352]
[1757556357803,3.22141699,224.82,224.74,2.54653352]
[1757556358002,3.22141699,224.81,224.7,8.04]
[1757556358202,3.22141699,224.8,224.75,2.54653352]
[1757556358407,109.58239082,224.85,224.75,2.54653352]
[1757556358602,3.22077525,224.84,224.75,2.54653352]
[1757556358805,3.22077525,224.83,224.75,2.54653352]
[1757556359009,3.22077525,224.82,224.75,2.54653352]
[1757556359212,3.22077525,224.81,224.75,2.54653352]
[1757556359400,109.58239082,224.85,224.75,2.54653352]
[1757556359604,3.22012258,224.84,224.75,2.54653352]
[1757556359805,3.22012258,224.83,224.75,2.54653352]
[1757556360101,3.22012258,224.82,224.75,2.54653352]
[1757556360300,3.22012258,224.81,224.75,2.54653352]
[1757556360508,109.58239082,224.85,224.75,2.54653352]
[1757556360710,3.22051543,224.84,224.75,2.54653352]
[1757556360909,3.22051543,224.83,224.75,2.54653352]
[1757556361111,3.22051543,224.82,224.75,2.54653352]
[1757556361315,3.22051543,224.81,224.75,2.54653352]
[1757556361612,109.58239082,224.85,224.75,2.54653352]
[1757556361814,3.21995764,224.84,224.75,2.54653352]
[1757556362013,3.21995764,224.83,224.75,2.54653352]
[1757556362214,3.21995764,224.82,224.75,2.54653352]
[1757556362513,3.21995764,224.81,224.75,2.54653352]
[1757556362713,109.58239082,224.85,224.75,2.54653352]
[1757556362913,3.21931652,224.84,224.75,2.54653352]
[1757556363120,3.21931652,224.83,224.75,2.54653352]
[1757556363310,3.21931652,224.82,224.75,2.54653352]
[1757556363508,3.21931652,224.81,224.75,2.54653352]
[1757556363708,109.58239082,224.85,224.75,2.54653352]
[1757556363915,3.21870342,224.84,224.75,2.54653352]
[1757556364105,3.21870342,224.83,224.75,2.54653352]
[1757556364305,3.21870342,224.82,224.79,1.62931127]
[1757556364516,3.21870342,224.81,224.79,1.62931127]
[1757556364816,109.58239082,224.85,224.79,1.62931127]
[1757556365014,3.21812457,224.84,224.79,1.62931127]
[1757556365215,3.21812457,224.83,224.79,1.62931127]
[1757556365417,3.21812457,224.82,224.79,1.62931127]
[1757556365618,109.58239082,224.85,224.79,1.62931127]
[1757556365812,3.21757415,224.84,224.71,2.78]
[1757556366018,3.21757415,224.83,224.79,1.62931127]
[1757556366218,3.21757415,224.82,224.79,1.62931127]
[1757556366418,109.58239082,224.85,224.79,1.62931127]
[1757556366619,3.21705188,224.84,224.79,1.62931127]
[1757556366818,3.21705188,224.83,224.79,1.62931127]
[1757556367113,3.21705188,224.82,224.79,1.62931127]
[1757556367417,109.58239082,224.85,224.79,1.62931127]
[1757556367619,3.21656359,224.84,224.71,2.78]
[1757556367819,3.21656359,224.83,224.79,1.62931127]
[1757556368015,3.21656359,224.82,224.79,1.62931127]
[1757556368216,109.58239082,224.85,224.79,1.62931127]
[1757556368416,3.21634012,224.84,224.79,1.62931127]
[1757556368616,3.21634012,224.83,224.79,1.62931127]
[1757556368920,3.21634012,224.82,224.79,1.62931127]
[1757556369121,109.58239082,224.85,224.79,1.62931127]
[1757556369315,3.21610088,224.84,224.79,1.62931127]
[1757556369516,3.21610088,224.83,224.79,1.62931127]
[1757556369718,3.21610088,224.82,224.79,1.62931127]
[1757556369917,109.58239082,224.85,224.79,1.62931127]
[1757556370219,3.21994364,224.84,224.59,374.37]
[1757556370419,4.84915412,224.83,224.74,1.62931127]
[1757556370627,3.21984285,224.82,224.74,1.62931127]
[1757556370815,1.62931127,224.83,224.74,1.62931127]
[1757556370816,3.21984285,224.81,224.74,1.62931127]
[1757556371017,3.21984285,224.8,224.74,1.62931127]
[1757556371222,1.62931127,224.83,224.74,1.62931127]
[1757556371411,3.21986589,224.82,224.74,1.62931127]
[1757556371718,3.21986589,224.81,224.74,1.62931127]
[1757556371910,3.21986589,224.8,224.74,1.62931127]
[1757556372109,1.62931127,224.83,224.74,1.62931127]
[1757556372316,3.21994633,224.82,224.74,1.62931127]
[1757556372623,3.21994633,224.81,224.74,1.62931127]
[1757556372917,3.21994633,224.8,224.74,1.62931127]
[1757556373118,1.62931127,224.83,224.74,1.62931127]
[1757556373319,3.21981654,224.82,224.74,1.62931127]
[1757556373520,3.21981654,224.81,224.74,1.62931127]
[1757556373814,3.21981654,224.8,224.74,1.62931127]
[1757556374118,7.55,224.81,224.75,7.32]
[1757556374319,3.21973813,224.8,224.75,7.32]
[1757556374615,1.62931127,224.81,224.75,7.32]
[1757556374821,10.76979221,224.8,224.72,8.94931127]
[1757556375120,7.55,224.78,224.72,8.94931127]
[1757556377027,3.22055904,224.77,224.72,1.62931127]
[1757556377221,7.55,224.76,224.73,7.32]
[1757556378221,7.55,224.76,224.72,1.62931127]
[1757556378421,7.55,224.78,224.66,7.32]
[1757556378622,7.55,224.76,224.69,8.94931127]
[1757556378920,7.55,224.74,224.66,7.32]
[1757556379119,10.77107753,224.73,224.68,1.62931127]
[1757556379426,7.55,224.73,224.68,1.62931127]
[1757556379623,7.55,224.73,224.69,7.32]
[1757556380123,7.55,224.73,224.68,1.62931127]
[1757556380324,7.55,224.73,224.69,7.32]
[1757556380824,7.55,224.76,224.69,7.32]
[1757556381014,3.22184273,224.75,224.69,7.32]
[1757556381214,3.22184273,224.74,224.69,7.32]
[1757556381413,3.22184273,224.73,224.68,1.62931127]
[1757556381619,3.22184273,224.72,224.66,7.32]
[1757556381827,7.55,224.7,224.66,7.32]
[1757556382024,7.55,224.72,224.66,7.32]
[1757556382225,3.22240836,224.71,224.66,7.32]
[1757556382425,7.55,224.69,224.66,7.32]
[1757556382727,7.55,224.72,224.66,7.32]
[1757556382919,7.55,224.7,224.66,7.32]
[1757556383119,7.55,224.72,224.66,7.32]
[1757556383323,3.22223531,224.71,224.66,7.32]
[1757556383522,7.55,224.69,224.66,7.32]
[1757556383716,7.55,224.69,224.65,38.0]
[1757556384022,7.55,224.69,224.66,7.32]
[1757556384826,7.55,224.72,224.66,7.32]
[1757556385023,3.22212523,224.71,224.66,7.32]
[1757556385328,7.55,224.69,224.66,7.32]
[1757556385724,7.55,224.69,224.64,7.32]
[1757556386228,7.55,224.69,224.63,1.62931127]
[1757556386429,7.55,224.69,224.64,7.32]
[1757556386728,7.55,224.69,224.63,1.62931127]
[1757556387226,7.55,224.69,224.64,6.88]
[1757556387427,7.55,224.69,224.63,1.62931127]
[1757556387629,7.55,224.69,224.64,6.88]
[1757556387829,7.55,224.69,224.63,1.62931127]
[1757556388131,7.55,224.69,224.64,6.88]
[1757556388326,7.55,224.69,224.63,1.62931127]
[1757556388539,7.55,224.69,224.64,6.88]
[1757556388734,6.88,224.72,224.65,1.62931127]
[1757556388930,3.22322765,224.71,224.66,6.88]
[1757556389134,6.88,224.72,224.68,6.88]
[1757556389436,10.10395784,224.71,224.68,6.88]
[1757556389638,3.22395784,224.7,224.67,1.62931127]
[1757556389826,6.88,224.71,224.67,1.62931127]
[1757556390026,3.22371828,224.7,224.68,6.88]
[1757556390238,6.88,224.71,224.68,6.88]
[1757556390436,3.22368728,224.7,224.68,6.88]
[1757556390737,6.88,224.74,224.68,6.88]
[1757556391033,3.22368728,224.73,224.68,6.88]
[1757556391234,6.88,224.71,224.68,6.88]
[1757556391425,4.89939163,224.79,224.68,6.88]
[1757556391627,1.62931127,224.77,224.68,6.88]
[1757556391829,13.58869574,224.76,224.68,6.88]
[1757556392031,6.88,224.74,224.68,6.88]
[1757556392230,3.22322178,224.73,224.67,1.62931127]
[1757556392429,10.10322178,224.72,224.68,6.88]
[1757556392635,3.22322178,224.71,224.68,6.88]
[1757556392834,6.88,224.72,224.68,6.88]
[1757556393034,3.22289178,224.71,224.69,1.62931127]
[1757556393236,6.88,224.76,224.69,8.50931127]
[1757556393439,3.22267869,224.75,224.69,8.50931127]
[1757556393641,6.88,224.73,224.7,6.88]
[1757556393938,3.22267869,224.72,224.7,6.88]
[1757556394139,3.22267869,224.71,224.7,6.88]
[1757556394543,6.88,224.73,224.7,6.88]
[1757556394743,6.88,224.76,224.7,6.88]
[1757556395040,10.10200456,224.75,224.71,1.62931127]
[1757556395232,3.22200456,224.74,224.72,6.88]
[1757556395431,6.88,224.75,224.72,6.88]